fUST/lending_fUST_20250218
["ID","MTS","AMOUNT","RATE_DAILY","PERIOD"]
[353437828,1739826650601,-500.0,0.00014109,2]
[353437829,1739826650621,-500.0,0.00014109,2]
[353437830,1739826650641,-500.0,0.00014109,2]
[353437831,1739826650650,-500.0,0.00014109,2]
[353437832,1739826650659,-500.0,0.00014109,2]
[353437833,1739826650671,-158.95,0.00014109,2]
[353437834,1739826650682,-631.82,0.00014109,2]
[353437835,1739826650692,-644.1,0.00014109,2]
[353437836,1739826650701,-500.0,0.00014109,2]
[353437837,1739826650711,-241.57,0.00014109,2]
[353437838,1739826650721,-559.03,0.00014109,2]
[353437839,1739826650731,-225.53,0.00014109,2]
[353437840,1739826650740,-201.45,0.00014109,2]
[353437841,1739826650749,-500.0,0.00014109,2]
[353437842,1739826650759,-500.0,0.00014109,2]
[353437843,1739826650768,-500.0,0.00014109,2]
[353437844,1739826650778,-500.0,0.00014109,2]
[353437845,1739826650787,-502.65,0.00014109,2]
[353437846,1739826650797,-1581.47,0.00014109,2]
[353437847,1739826650806,-500.0,0.00014109,2]
[353437848,1739826650815,-454.78,0.00014109,2]
[353437849,1739826650825,-323.64,0.00014109,2]
[353437850,1739826650835,-500.0,0.00014191,2]
[353437851,1739826650845,-155.14,0.00014191,2]
[353437852,1739826650855,-607.16,0.00014191,2]
[353437853,1739826650864,-605.14,0.00014191,2]
[353437854,1739826650874,-578.6,0.00014191,2]
[353437855,1739826650883,-500.0,0.00014191,2]
[353437856,1739826650893,-5264.67,0.00014191,2]
[353437857,1739826650978,-500.0,0.00014191,2]
[353437858,1739826650988,-629.89,0.00014191,2]
[353437859,1739826650998,-500.0,0.00014191,2]
[353437860,1739826651007,-1438.93,0.00014191,2]
[353437861,1739826651016,-606.06827731,0.00014191,2]
[353437862,1739826651027,-476.68,0.00014191,2]
[353437863,1739826651037,-500.0,0.00014191,2]
[353437864,1739826651046,-500.0,0.00014191,2]
[353437865,1739826651055,-500.0,0.00014191,2]
[353437866,1739826651065,-342.16,0.00014191,2]
[353437867,1739826651076,-253.58,0.00014191,2]
[353437868,1739826651086,-500.0,0.00014191,2]
[353437869,1739826651095,-249.69,0.00014191,2]
[353437870,1739826651106,-500.0,0.00014191,2]
[353437871,1739826651115,-225.82,0.00014191,2]
[353437872,1739826651125,-500.0,0.00014191,2]
[353437873,1739826651135,-501.39,0.00014191,2]
[353437874,1739826651149,-500.0,0.00014191,2]
[353437875,1739826651158,-500.0,0.00014191,2]
[353437876,1739826651168,-502.65,0.00014191,2]
[353437877,1739826651178,-1581.47,0.00014191,2]
[353437878,1739826651189,-346.94,0.00014191,2]
[353437879,1739826651199,-544.58376322,0.00014197,2]
[353437880,1739826651208,-620.79,0.00014273,2]
[353437881,1739826651218,-151.0,0.00014273,2]
[353437882,1739826651229,-578.6,0.00014273,2]
[353437883,1739826651238,-500.0,0.00014273,2]
[353437884,1739826651248,-5264.67,0.00014273,2]
[353437885,1739826651258,-500.0,0.00014273,2]
[353437886,1739826651268,-500.0,0.00014273,2]
[353437887,1739826651277,-1438.93,0.00014273,2]
[353437888,1739826651287,-500.0,0.00014273,2]
[353437889,1739826651297,-500.0,0.00014273,2]
[353437890,1739826651306,-152.84,0.00014273,2]
[353437891,1739826651316,-500.0,0.00014273,2]
[353437892,1739826651326,-279.17,0.00014273,2]
[353437893,1739826651336,-500.0,0.00014273,2]
[353437894,1739826651346,-500.0,0.00014273,2]
[353437895,1739826651356,-500.0,0.00014273,2]
[353437896,1739826651365,-502.65,0.00014273,2]
[353437897,1739826651375,-1581.47,0.00014273,2]
[353437898,1739826651384,-544.58376322,0.00014297,2]
[353437899,1739826651394,-578.6,0.00014356,2]
[353437900,1739826651403,-500.0,0.00014356,2]
[353437901,1739826651413,-5264.67,0.00014356,2]
[353437902,1739826651423,-500.0,0.00014356,2]
[353437903,1739826651433,-500.0,0.00014356,2]
[353437904,1739826651442,-1438.93,0.00014356,2]
[353437905,1739826651453,-500.0,0.00014356,2]
[353437906,1739826651463,-500.0,0.00014356,2]
[353437907,1739826651473,-500.0,0.00014356,2]
[353437908,1739826651483,-569.62,0.00014356,2]
[353437909,1739826651493,-500.0,0.00014356,2]
[353437910,1739826651502,-500.0,0.00014356,2]
[353437911,1739826651511,-502.65,0.00014356,2]
[353437912,1739826651521,-1581.47,0.00014356,2]
[353437913,1739826651531,-544.58376322,0.00014397,2]
[353437914,1739826651541,-578.6,0.00014438,2]
[353437915,1739826651551,-5264.67,0.00014438,2]
[353437916,1739826651560,-470.36,0.00014438,2]
[353437917,1739826651571,-1438.93,0.00014438,2]
[353437918,1739826651581,-500.0,0.00014438,2]
[353437919,1739826651591,-500.0,0.00014438,2]
[353437920,1739826651601,-500.0,0.00014438,2]
[353437921,1739826651611,-500.0,0.00014438,2]
[353437922,1739826651620,-330.07,0.00014438,2]
[353437923,1739826651630,-502.65,0.00014438,2]
[353437924,1739826651640,-1581.47,0.00014438,2]
[353437925,1739826651650,-544.58376322,0.00014497,2]
[353437926,1739826651659,-578.6,0.0001452,2]
[353437927,1739826651669,-5264.67,0.0001452,2]
[353437928,1739826651678,-1438.93,0.0001452,2]
[353437929,1739826651688,-500.0,0.0001452,2]
[353437930,1739826651698,-500.0,0.0001452,2]
[353437931,1739826651708,-500.0,0.0001452,2]
[353437932,1739826651718,-500.0,0.0001452,2]
[353437933,1739826651727,-502.65,0.0001452,2]
[353437934,1739826651737,-1581.47,0.0001452,2]
[353437935,1739826651746,-544.58376322,0.00014597,2]
[353437936,1739826651756,-362.693019,0.00014601,2]
[353437937,1739826651766,-151.0,0.00014602,2]
[353437938,1739826651776,-578.6,0.00014602,2]
[353437939,1739826651786,-5264.67,0.00014602,2]
[353437940,1739826651796,-1438.93,0.00014602,2]
[353437941,1739826651806,-500.0,0.00014602,2]
[353437942,1739826651818,-500.0,0.00014602,2]
[353437943,1739826651828,-500.0,0.00014602,2]
[353437944,1739826651837,-500.0,0.00014602,2]
[353437945,1739826651847,-502.65,0.00014602,2]
[353437946,1739826651856,-1581.47,0.00014602,2]
[353437947,1739826651866,-160.0,0.00014628,3]
[353437948,1739826651876,-578.6,0.00014684,2]
[353437949,1739826651885,-5264.67,0.00014684,2]
[353437950,1739826651895,-1438.93,0.00014684,2]
[353437951,1739826651905,-500.0,0.00014684,2]
[353437952,1739826651915,-500.0,0.00014684,2]
[353437953,1739826651925,-617.05,0.00014684,2]
[353437954,1739826651934,-500.0,0.00014684,2]
[353437955,1739826651944,-502.65,0.00014684,2]
[353437956,1739826651954,-1581.47,0.00014684,2]
[353437957,1739826651963,-544.58376322,0.00014697,2]
[353437958,1739826651973,-578.6,0.00014767,2]
[353437959,1739826651983,-5264.67,0.00014767,2]
[353437960,1739826651993,-1438.93,0.00014767,2]
[353437961,1739826652003,-500.0,0.00014767,2]
[353437962,1739826652013,-500.0,0.00014767,2]
[353437963,1739826652022,-500.0,0.00014767,2]
[353437964,1739826652032,-502.65,0.00014767,2]
[353437965,1739826652041,-1581.47,0.00014767,2]
[353437966,1739826652051,-544.58376322,0.00014797,2]
[353437967,1739826652061,-150.0,0.00014805,2]
[353437968,1739826652072,-150.0,0.00014805,2]
[353437969,1739826652082,-1970.0,0.00014805,2]
[353437970,1739826652091,-538.0,0.00014805,2]
[353437971,1739826652103,-2293.0,0.00014805,2]
[353437972,1739826652113,-396.0,0.00014814,2]
[353437973,1739826652123,-578.6,0.00014849,2]
[353437974,1739826652133,-5264.67,0.00014849,2]
[353437975,1739826652149,-1438.93,0.00014849,2]
[353437976,1739826652159,-500.0,0.00014849,2]
[353437977,1739826652169,-500.0,0.00014849,2]
[353437978,1739826652178,-151.0,0.00014849,2]
[353437979,1739826652189,-237.02801183,0.00014849,2]
[353437980,1739826652199,-502.65,0.00014849,2]
[353437981,1739826652208,-1581.47,0.00014849,2]
[353437982,1739826652219,-544.58376322,0.00014897,2]
[353437983,1739826652230,-6788.89875645,0.000149,5]
[353437984,1739826652239,-150.0,0.000149,2]
[353437985,1739826652249,-300.0,0.000149,5]
[353437986,1739826652338,-151.0,0.000149,2]
[353437987,1739826652348,-1162.17567918,0.000149,2]
[353437988,1739826652359,-158873.80918763,0.000149,2]
[353437989,1739826652384,-83254.41575537,0.000149,2]
[353437990,1739826652394,-178.022898,0.000149,2]
[353437991,1739826652404,-420.0,0.00014902,2]
[353437992,1739826652414,-515.0,0.0001493,2]
[353437993,1739826652424,-578.6,0.00014931,2]
[353437994,1739826652434,-5264.67,0.00014931,2]
[353437995,1739826652444,-1438.93,0.00014931,2]
[353437996,1739826652455,-500.0,0.00014931,2]
[353437997,1739826652464,-500.0,0.00014931,2]
[353437998,1739826652474,-502.65,0.00014931,2]
[353437999,1739826652483,-1581.47,0.00014931,2]
[353438000,1739826652493,-500.0,0.00014973,2]
[353438001,1739826652503,-500.0,0.00014973,2]
[353438002,1739826652513,-500.0,0.00014973,2]
[353438003,1739826652522,-544.58376322,0.00014997,2]
[353438004,1739826652532,-151.0,0.00014999,2]
[353438005,1739826652542,-63639.96488275,0.00015,2]
[353438006,1739826652820,-500.0,0.00013698,2]
[353438007,1739826652830,-500.0,0.00013698,2]
[353438008,1739826652840,-500.0,0.00013698,2]
[353438009,1739826652851,-500.0,0.00013698,2]
[353438010,1739826652862,-346.27600435,0.00013698,2]
[353438011,1739826652873,-295.83,0.0001378,2]
[353438012,1739826652883,-604752.25008164,0.00015,2]
[353438013,1739826652892,-151.0,0.00015,2]
[353438014,1739826652902,-623.0,0.00015,2]
[353438015,1739826652912,-1438.93,0.00015013,2]
[353438016,1739826652922,-411.74835927,0.00015013,2]
[353438017,1739826652932,-500.0,0.00015013,2]
[353438018,1739826652942,-502.65,0.00015013,2]
[353438019,1739826652952,-1581.47,0.00015013,2]
[353438020,1739826652962,-2200.0,0.0001503,2]
[353438021,1739826652973,-1438.93,0.00015095,2]
[353438022,1739826652983,-500.0,0.00015095,2]
[353438023,1739826652993,-502.65,0.00015095,2]
[353438024,1739826653002,-1581.47,0.00015095,2]
[353438025,1739826653014,-544.58376322,0.00015097,2]
[353438026,1739826653023,-1438.93,0.00015178,2]
[353438027,1739826653033,-500.0,0.00015178,2]
[353438028,1739826653043,-502.65,0.00015178,2]
[353438029,1739826653052,-1581.47,0.00015178,2]
[353438030,1739826653062,-544.58376322,0.00015197,2]
[353438031,1739826653073,-1162.17567911,0.00015233,2]
[353438032,1739826653082,-1438.93,0.0001526,2]
[353438033,1739826653092,-193.29,0.0001526,2]
[353438034,1739826653102,-500.0,0.0001526,2]
[353438035,1739826653113,-502.65,0.0001526,2]
[353438036,1739826653122,-1581.47,0.0001526,2]
[353438037,1739826653132,-544.58376322,0.00015297,2]
[353438038,1739826653143,-163.492707,0.00015325,4]
[353438039,1739826653154,-500.0,0.00015325,2]
[353438040,1739826653163,-1438.93,0.00015342,2]
[353438041,1739826653172,-502.65,0.00015342,2]
[353438042,1739826653182,-1581.47,0.00015342,2]
[353438043,1739826653194,-544.58376322,0.00015397,2]
[353438044,1739826653204,-150.0,0.00015416,4]
[353438045,1739826653214,-171.77593022,0.00015416,4]
[353438046,1739826653224,-1438.93,0.00015424,2]
[353438047,1739826653234,-502.65,0.00015424,2]
[353438048,1739826653243,-1581.47,0.00015424,2]
[353438049,1739826653253,-544.58376322,0.00015497,2]
[353438050,1739826653263,-1438.93,0.00015506,2]
[353438051,1739826653273,-502.65,0.00015506,2]
[353438052,1739826653284,-1581.47,0.00015506,2]
[353438053,1739826653293,-1000.0,0.00015521,2]
[353438054,1739826653303,-1000.0,0.00015521,2]
[353438055,1739826653313,-752.30144326,0.00015521,2]
[353438056,1739826653324,-685.2631091,0.00015534,2]
[353438057,1739826653333,-1162.17567911,0.00015567,2]
[353438058,1739826653343,-600.0,0.00015578,2]
[353438059,1739826653353,-1439.15186861,0.00015589,2]
[353438060,1739826653362,-502.75160434,0.00015589,2]
[353438061,1739826653372,-1581.55477256,0.00015589,2]
[353438062,1739826653382,-544.58376322,0.00015597,2]
[353438063,1739826653391,-163.492707,0.0001565,4]
[353438064,1739826653401,-544.58376322,0.00015697,2]
[353438065,1739826653412,-17184.57707343,0.000157,2]
[353438066,1739826653550,-1092.07063831,0.000157,2]
[353438067,1739826653632,-500.0,0.00013698,2]
[353438068,1739826653642,-500.0,0.00013698,2]
[353438069,1739826653652,-500.0,0.0001378,2]
[353438070,1739826653662,-500.0,0.00013863,2]
[353438071,1739826653671,-500.0,0.00013945,2]
[353438072,1739826653681,-500.0,0.00014027,2]
[353438073,1739826653691,-500.0,0.00014109,2]
[353438074,1739826653701,-500.0,0.00014191,2]
[353438075,1739826653710,-500.0,0.00014273,2]
[353438076,1739826653720,-500.0,0.00014356,2]
[353438077,1739826653730,-12239.90452312,0.000157,2]
[353438078,1739826653741,-160.0,0.0001571,4]
[353438079,1739826653751,-160.0,0.0001571,5]
[353438080,1739826653762,-600.0,0.0001574,2]
[353438081,1739826653772,-544.58376322,0.00015797,2]
[353438082,1739826653783,-544.58376322,0.00015897,2]
[353438083,1739826653795,-1162.17567911,0.000159,2]
[353438084,1739826653808,-150.0,0.00015943,4]
[353438085,1739826653819,-150.0,0.00015943,4]
[353438086,1739826653829,-163.492707,0.00015975,4]
[353438087,1739826653839,-544.58376322,0.00015997,2]
[353438088,1739826653849,-1000.0,0.00016,16]
[353438089,1739826653860,-3000.0,0.00016,2]
[353438090,1739826653870,-3000.0,0.0001601,2]
[353438091,1739826653881,-3000.0,0.0001602,2]
[353438092,1739826653891,-3000.0,0.0001603,2]
[353438093,1739826653901,-3000.0,0.0001604,2]
[353438094,1739826653911,-3000.0,0.0001605,2]
[353438095,1739826653920,-3000.0,0.0001606,2]
[353438096,1739826653930,-3000.0,0.0001607,2]
[353438097,1739826653939,-3000.0,0.0001608,2]
[353438098,1739826653949,-3000.0,0.0001609,2]
[353438099,1739826653960,-544.58376322,0.00016097,2]
[353438100,1739826653969,-3000.0,0.000161,2]
[353438101,1739826653979,-3000.0,0.0001611,2]
[353438102,1739826653989,-3000.0,0.0001612,2]
[353438103,1739826653999,-3000.0,0.0001613,2]
[353438104,1739826654008,-3000.0,0.0001614,2]
[353438105,1739826654017,-3000.0,0.0001615,2]
[353438106,1739826654027,-3000.0,0.0001616,2]
[353438107,1739826654036,-786.62,0.00016164,2]
[353438108,1739826654046,-3000.0,0.0001617,2]
[353438109,1739826654055,-3000.0,0.0001618,2]
[353438110,1739826654065,-3000.0,0.0001619,2]
[353438111,1739826654076,-544.58376322,0.00016197,2]
[353438112,1739826654086,-3000.0,0.000162,2]
[353438113,1739826654095,-3000.0,0.0001621,2]
[353438114,1739826654106,-3000.0,0.0001622,2]
[353438115,1739826654117,-2538.7713922,0.00016227,2]
[353438116,1739826654126,-3000.0,0.0001623,2]
[353438117,1739826654139,-1162.17567911,0.00016233,2]
[353438118,1739826654153,-3000.0,0.0001624,2]
[353438119,1739826654163,-3000.0,0.0001625,2]
[353438120,1739826654172,-3000.0,0.0001626,2]
[353438121,1739826654183,-3000.0,0.0001627,2]
[353438122,1739826654196,-1000.0,0.0001627,7]
[353438123,1739826654206,-1000.0,0.0001627,7]
[353438124,1739826654218,-1000.0,0.0001627,7]
[353438125,1739826654229,-1000.0,0.0001627,7]
[353438126,1739826654238,-1000.0,0.0001627,7]
[353438127,1739826654248,-1000.0,0.0001627,7]
[353438128,1739826654259,-1000.0,0.0001627,7]
[353438129,1739826654270,-1000.0,0.0001627,7]
[353438130,1739826654280,-1000.0,0.0001627,7]
[353438131,1739826654290,-1000.0,0.0001627,7]
[353438132,1739826654300,-1000.0,0.0001627,7]
[353438133,1739826654310,-1000.0,0.0001627,7]
[353438134,1739826654321,-1000.0,0.0001627,7]
[353438135,1739826654331,-1000.0,0.0001627,7]
[353438136,1739826654340,-1000.0,0.0001627,7]
[353438137,1739826654350,-1000.0,0.0001627,7]
[353438138,1739826654361,-1000.0,0.0001627,7]
[353438139,1739826654371,-1000.0,0.0001627,7]
[353438140,1739826654381,-1000.0,0.0001627,7]
[353438141,1739826654391,-1000.0,0.0001627,7]
[353438142,1739826654401,-1000.0,0.0001627,7]
[353438143,1739826654410,-1000.0,0.0001627,7]
[353438144,1739826654419,-1000.0,0.0001627,7]
[353438145,1739826654429,-1000.0,0.0001627,7]
[353438146,1739826654438,-1000.0,0.0001627,7]
[353438147,1739826654448,-1000.0,0.0001627,7]
[353438148,1739826654458,-1000.0,0.0001627,7]
[353438149,1739826654467,-1000.0,0.0001627,7]
[353438150,1739826654477,-1000.0,0.0001627,7]
[353438151,1739826654486,-1000.0,0.0001627,7]
[353438152,1739826654496,-1000.0,0.0001627,7]
[353438153,1739826654505,-1000.0,0.0001627,7]
[353438154,1739826654515,-1000.0,0.0001627,7]
[353438155,1739826654525,-1000.0,0.0001627,7]
[353438156,1739826654535,-1000.0,0.0001627,7]
[353438157,1739826654545,-1000.0,0.0001627,7]
[353438158,1739826654554,-815.303282,0.0001627,7]
[353438159,1739826654564,-3000.0,0.0001628,2]
[353438160,1739826654645,-3000.0,0.0001629,2]
[353438161,1739826654657,-544.58376322,0.00016297,2]
[353438162,1739826654667,-2000.0,0.000163,2]
[353438163,1739826654677,-159747.79681592,0.000163,3]
[353438164,1739826654687,-3000.0,0.000163,2]
[353438165,1739826654700,-155.24,0.000163,31]
[353438166,1739826654711,-155.24,0.000163,31]
[353438167,1739826654720,-155.24,0.000163,31]
[353438168,1739826654730,-155.24,0.000163,31]
[353438169,1739826654739,-155.24,0.000163,31]
[353438170,1739826654749,-155.24,0.000163,31]
[353438171,1739826654759,-155.24,0.000163,31]
[353438172,1739826654768,-155.24,0.000163,31]
[353438173,1739826654778,-163.492707,0.000163,4]
[353438174,1739826654788,-3000.0,0.0001631,2]
[353438175,1739826654800,-163.492707,0.00016317,2]
[353438176,1739826654810,-3000.0,0.0001632,2]
[353438177,1739826654821,-3000.0,0.0001633,2]
[353438178,1739826654831,-3000.0,0.0001634,2]
[353438179,1739826654841,-3000.0,0.0001635,2]
[353438180,1739826654851,-3000.0,0.0001636,2]
[353438181,1739826654860,-3000.0,0.0001637,2]
[353438182,1739826654870,-3000.0,0.0001638,2]
[353438183,1739826654879,-4166.492816,0.0001639,2]
[353438184,1739826654889,-544.58376322,0.00016397,2]
[353438185,1739826654899,-300.0,0.000164,6]
[353438186,1739826654909,-201.41177928,0.00016408,60]
[353438187,1739826654919,-500.0,0.00016438,3]
[353438188,1739826654928,-500.0,0.00016438,3]
[353438189,1739826654937,-500.0,0.00016438,3]
[353438190,1739826654947,-314.29887857,0.00016438,3]
[353438191,1739826654956,-787.01,0.00016438,2]
[353438192,1739826654966,-787.01,0.00016438,2]
[353438193,1739826654976,-787.01,0.00016438,2]
[353438194,1739826654986,-787.01,0.00016438,2]
[353438195,1739826654995,-787.01,0.00016438,2]
[353438196,1739826655006,-787.01,0.00016438,2]
[353438197,1739826655015,-787.01,0.00016438,2]
[353438198,1739826655025,-787.01,0.00016438,2]
[353438199,1739826655035,-787.01,0.00016438,2]
[353438200,1739826655044,-787.01,0.00016438,2]
[353438201,1739826655054,-787.01,0.00016438,2]
[353438202,1739826655064,-787.01,0.00016438,2]
[353438203,1739826655074,-787.01,0.00016438,2]
[353438204,1739826655084,-787.01,0.00016438,2]
[353438205,1739826655093,-787.01,0.00016438,2]
[353438206,1739826655103,-787.01,0.00016438,2]
[353438207,1739826655112,-787.01,0.00016438,2]
[353438208,1739826655122,-787.01,0.00016438,2]
[353438209,1739826655133,-787.01,0.00016438,2]
[353438210,1739826655147,-787.01,0.00016438,2]
[353438211,1739826655157,-787.01,0.00016438,2]
[353438212,1739826655168,-787.01,0.00016438,2]
[353438213,1739826655178,-787.01,0.00016438,2]
[353438214,1739826655191,-787.06326802,0.00016438,2]
[353438215,1739826655200,-344.62,0.00016438,2]
[353438216,1739826655210,-344.62,0.00016438,2]
[353438217,1739826655222,-344.62,0.00016438,2]
[353438218,1739826655233,-344.62,0.00016438,2]
[353438219,1739826655243,-344.62,0.00016438,2]
[353438220,1739826655252,-344.62,0.00016438,2]
[353438221,1739826655262,-344.62,0.00016438,2]
[353438222,1739826655272,-344.62,0.00016438,2]
[353438223,1739826655282,-344.62,0.00016438,2]
[353438224,1739826655294,-344.62,0.00016438,2]
[353438225,1739826655303,-344.62,0.00016438,2]
[353438226,1739826655315,-344.62,0.00016438,2]
[353438227,1739826655326,-344.62,0.00016438,2]
[353438228,1739826655335,-344.62,0.00016438,2]
[353438229,1739826655347,-344.62,0.00016438,2]
[353438230,1739826655360,-344.62,0.00016438,2]
[353438231,1739826655373,-344.62,0.00016438,2]
[353438232,1739826655383,-344.62,0.00016438,2]
[353438233,1739826655393,-344.62,0.00016438,2]
[353438234,1739826655403,-344.62,0.00016438,2]
[353438235,1739826655413,-344.62,0.00016438,2]
[353438236,1739826655423,-344.62,0.00016438,2]
[353438237,1739826655434,-344.62,0.00016438,2]
[353438238,1739826655444,-344.77293873,0.00016438,2]
[353438239,1739826655454,-2476.27,0.00016438,7]
[353438240,1739826655464,-2476.27,0.00016438,7]
[353438241,1739826655473,-2476.27,0.00016438,7]
[353438242,1739826655483,-2476.27,0.00016438,7]
[353438243,1739826655492,-2476.27,0.00016438,7]
[353438244,1739826655502,-2476.27,0.00016438,7]
[353438245,1739826655511,-2476.27,0.00016438,7]
[353438246,1739826655520,-2476.27,0.00016438,7]
[353438247,1739826655530,-2476.27,0.00016438,7]
[353438248,1739826655540,-2476.27,0.00016438,7]
[353438249,1739826655549,-2476.27,0.00016438,7]
[353438250,1739826655559,-2476.27,0.00016438,7]
[353438251,1739826655569,-2476.27,0.00016438,7]
[353438252,1739826655578,-2476.27,0.00016438,7]
[353438253,1739826655588,-2476.27,0.00016438,7]
[353438254,1739826655597,-2476.27,0.00016438,7]
[353438255,1739826655606,-2476.27,0.00016438,7]
[353438256,1739826655615,-2476.27,0.00016438,7]
[353438257,1739826655625,-2476.27,0.00016438,7]
[353438258,1739826655634,-2476.27,0.00016438,7]
[353438259,1739826655643,-2476.27,0.00016438,7]
[353438260,1739826655653,-2476.27,0.00016438,7]
[353438261,1739826655663,-2476.27,0.00016438,7]
[353438262,1739826655672,-2476.38933268,0.00016438,7]
[353438263,1739826655682,-477.48104098,0.00016438,2]
[353438264,1739826655762,-500.0,0.00016438,2]
[353438265,1739826655774,-500.0,0.00016438,2]
[353438266,1739826655784,-467.530806,0.00016438,2]
[353438267,1739826655794,-467.530806,0.00016438,2]
[353438268,1739826655803,-467.530806,0.00016438,2]
[353438269,1739826655813,-467.530806,0.00016438,2]
[353438270,1739826655823,-467.530806,0.00016438,2]
[353438271,1739826655832,-467.530806,0.00016438,2]
[353438272,1739826655842,-467.530806,0.00016438,2]
[353438273,1739826655852,-467.530806,0.00016438,2]
[353438274,1739826655862,-544.58376322,0.00016497,2]
[353438275,1739826655874,-199.51,0.000165,2]
[353438276,1739826655884,-21067.20689738,0.000165,2]
[353438277,1739826655898,-695.44042931,0.000165,2]
[353438278,1739826655915,-500.0,0.00014438,2]
[353438279,1739826655925,-2566.84171807,0.000165,2]
[353438280,1739826722061,400.0,0.00010685,2]
[353438283,1739827635252,-490.0,0.00011686,2]
[353438284,1739827635274,-490.0,0.00011804,2]
[353438285,1739827635296,-300.0,0.00012615,2]
[353438286,1739827635318,-523.31214438,0.00012616,2]
[353438287,1739827642090,-320.75221735,0.00012616,2]
[353438288,1739827643128,-281.20317066,0.00012616,2]
[353438289,1739827654111,-333.8276439,0.00012365,2]
[353438290,1739827654134,-333.8276439,0.0001249,2]
[353438291,1739827654312,-85.79276482,0.00012616,2]
[353438292,1739827715936,1032.40704363,0.0001677,90]
[353438293,1739827756101,-400.0,0.00010685,2]
[353438294,1739827756122,-4176.1723561,0.0001249,2]
[353438295,1739827756146,-300.0,0.00012615,2]
[353438296,1739827756180,-15121.43321399,0.00012616,2]
[353438297,1739827760101,-448.3815152,0.00012664,2]
[353438329,1739827832350,-51.6184848,0.00012664,2]
[353438331,1739827832360,-186.40011137,0.00013598,2]
[353438333,1739827832369,-27836.05885485,0.00013598,2]
[353438348,1739827838009,-10802.31654464,0.00013598,2]
[353438350,1739827838019,-500.51061943,0.00013673,2]
[353438351,1739827838029,-235.57027522,0.00013673,2]
[353438352,1739827838039,-415.98368025,0.00013673,2]
[353438353,1739827838049,-500.0,0.00013697,2]
[353438354,1739827838059,-500.0,0.00013697,2]
[353438355,1739827838068,-500.0,0.00013697,2]
[353438356,1739827838078,-500.0,0.00013697,2]
[353438357,1739827838087,-500.0,0.00013697,2]
[353438358,1739827838097,-500.0,0.00013697,2]
[353438359,1739827838106,-500.0,0.00013697,2]
[353438360,1739827838116,-500.0,0.00013697,2]
[353438361,1739827838125,-650.0,0.00013697,2]
[353438362,1739827838135,-582.20239481,0.00013697,2]
[353438363,1739827838144,-500.0,0.00013697,2]
[353438364,1739827838154,-500.0,0.00013697,2]
[353438365,1739827838163,-500.0,0.00013697,2]
[353438366,1739827838173,-500.0,0.00013697,2]
[353438367,1739827838183,-500.0,0.00013697,2]
[353438368,1739827838192,-500.0,0.00013697,2]
[353438369,1739827838202,-500.0,0.00013697,2]
[353438370,1739827838211,-500.0,0.00013697,2]
[353438371,1739827838221,-596.54870508,0.00013697,2]
[353438372,1739827838230,-500.0,0.00013697,2]
[353438373,1739827838239,-500.0,0.00013697,2]
[353438374,1739827838250,-500.0,0.00013697,2]
[353438375,1739827838260,-500.0,0.00013697,2]
[353438376,1739827838269,-500.0,0.00013697,2]
[353438377,1739827838279,-196.39801114,0.00013697,2]